bitfinex-derivatives/quotes_SOLF0:USTF0_20240923
["timestamp","ask_amount","ask_price","bid_price","bid_amount"]
[1727050878207,4.92226904,143.18,143.08,18.85]
[1727050878802,3.4929,143.13,143.09,3.4937]
[1727050879003,4.92226904,143.18,143.08,18.85]
[1727050880208,3.4927,143.14,143.1,3.4934]
[1727050880412,1.4561,143.18,143.08,18.85]
[1727050880606,2.695,143.2,143.1,18.85]
[1727050880807,3.4922,143.16,143.12,3.493]
[1727050881009,20.1752,143.24,143.12,18.85]
[1727050881010,3.57545759,143.22,143.12,18.85]
[1727050881314,3.4917,143.18,143.14,3.4925]
[1727050881702,3.4923,143.15,143.1,18.85]
[1727050881909,23.70906625,143.24,143.09,2.8302]
[1727050882101,23.70906625,143.24,143.12,18.85]
[1727050882303,1.3252,143.24,143.15,18.85]
[1727050882801,3.4907,143.22,143.17,3.4916]
[1727050883105,1.3252,143.24,143.17,18.85]
[1727050883301,1.3384,143.29,143.17,18.85]
[1727050883503,4.0715,143.29,143.17,20.2608]
[1727050883808,4.0715,143.29,143.2,18.85]
[1727050884314,3.4891,143.28,143.23,3.4901]
[1727050884511,3.51289582,143.32,143.22,18.85]
[1727050884701,3.4891,143.29,143.24,3.49]
[1727050885108,22.9712,143.36,143.24,18.85]
[1727050885414,3.4886,143.31,143.26,3.4895]
[1727050885803,7.68997716,143.36,143.24,20.3091]
[1727050886516,3.4888,143.3,143.24,23.799]
[1727050886703,18.85,143.34,143.23,1.3503]
[1727050886904,18.85,143.32,143.23,1.3503]
[1727050887105,7.68997716,143.36,143.24,18.85]
[1727050887310,26.53997716,143.36,143.24,18.85]
[1727050887517,7.68997716,143.36,143.23,1.3503]
[1727050887713,7.68997716,143.36,143.26,18.85]
[1727050888314,7.68997716,143.36,143.24,20.2702]
[1727050888518,3.4885,143.31,143.25,3.4896]
[1727050888710,7.68997716,143.36,143.24,20.2702]
[1727050888911,4.1212,143.36,143.27,18.85]
[1727050889113,4.1212,143.36,143.27,22.3393]
[1727050889411,18.85,143.41,143.29,18.85]
[1727050889609,4.50160228,143.4,143.3,3.4884]
[1727050889912,23.1373,143.43,143.3,4.9504]
[1727050890121,1.06960919,143.42,143.3,4.9504]
[1727050890417,1.06960919,143.42,143.31,18.85]
[1727050890713,3.4871,143.37,143.31,18.85]
[1727050890911,23.1373,143.43,143.31,20.2557]
[1727050891115,3.4866,143.39,143.31,21.7117]
[1727050891315,1.4444,143.43,143.34,22.3376]
[1727050891517,1.4444,143.43,143.36,18.85]
[1727050891720,2.6676,143.47,143.36,18.85]
[1727050892019,1.07041582,143.46,143.36,18.85]
[1727050892313,4.1278,143.47,143.36,18.85]
[1727050892519,4.1278,143.47,143.38,22.3366]
[1727050892904,4.1278,143.47,143.38,18.85]
[1727050893103,18.85,143.46,143.33,18.85]
[1727050893304,1.07040283,143.46,143.36,18.85]
[1727050893512,4.1278,143.47,143.38,3.4866]
[1727050893916,4.1278,143.47,143.36,18.85]
[1727050894104,3.4863,143.4,143.36,18.85]
[1727050894417,4.1278,143.47,143.36,18.85]
[1727050894805,4.1278,143.47,143.34,18.85]
[1727050894806,18.85,143.46,143.34,18.85]
[1727050895312,3.4864,143.39,143.34,18.85]
[1727050896416,3.4862,143.4,143.35,3.4872]
[1727050896918,18.85,143.46,143.35,3.4872]
[1727050897114,18.85,143.46,143.34,22.3376]
[1727050897710,3.4867,143.38,143.34,22.3376]
[1727050898119,18.85,143.44,143.32,3.488]
[1727050898315,18.85,143.44,143.34,18.85]
[1727050898513,4.1278,143.47,143.36,18.85]
[1727050898819,4.1278,143.47,143.36,22.3371]
[1727050899011,3.4863,143.4,143.36,18.85]
[1727050899215,4.1278,143.47,143.36,18.85]
[1727050899716,4.1278,143.47,143.31,21.7117]
[1727050899717,18.85,143.46,143.31,21.7117]
[1727050900022,3.4871,143.37,143.32,3.4881]
[1727050900316,18.85,143.46,143.34,18.85]
[1727050900516,18.85,143.46,143.34,22.3376]
[1727050900718,18.85,143.46,143.31,2.8617]
[1727050900719,4.1278,143.47,143.36,18.85]
[1727050901614,18.85,143.46,143.33,18.85]
[1727050902123,3.4867,143.38,143.33,22.3378]
[1727050902322,3.4867,143.38,143.33,18.85]
[1727050902619,3.4861,143.41,143.36,22.3369]
[1727050903011,4.1278,143.47,143.36,18.85]
[1727050903715,18.85,143.44,143.31,2.8617]
[1727050903911,3.4873,143.36,143.32,3.488]
[1727050904123,18.85,143.44,143.31,2.8617]
[1727050904318,18.85,143.44,143.33,3.4878]
[1727050904919,18.85,143.44,143.32,22.338]
[1727050905126,18.85,143.44,143.32,18.85]
[1727050905425,18.85,143.44,143.32,22.338]
[1727050905623,18.85,143.41,143.3,20.312]
[1727050905924,4.1818,143.4,143.3,20.312]
[1727050906129,7.66690257,143.4,143.3,20.312]
[1727050906418,7.66690257,143.4,143.28,18.85]
[1727050906419,18.85,143.39,143.28,18.85]
[1727050906813,18.85,143.39,143.25,4.1566]
[1727050906814,18.85,143.39,143.25,2.8155]
[1727050907015,18.85,143.37,143.25,2.8155]
[1727050907230,18.85,143.37,143.25,1.4645]
[1727050907528,18.85,143.37,143.25,4.9542]
[1727050907529,3.4887,143.3,143.25,4.9542]
[1727050908225,3.4883,143.32,143.27,3.4892]
[1727050908523,18.85,143.37,143.25,1.4645]
[1727050909331,3.4893,143.27,143.25,1.4645]
[1727050909719,3.56862788,143.32,143.25,1.4645]
[1727050909930,3.489,143.29,143.25,1.4645]
[1727050910121,3.489,143.29,143.07,2.94756762]
[1727050910122,18.85,143.26,143.16,1.3222]
[1727050910420,18.85,143.26,143.12,18.85]
[1727050910618,18.85,143.26,143.13,1.28342004]
[1727050910619,18.85,143.24,143.13,1.28342004]
[1727050910813,18.85,143.24,143.1,1.4601]
[1727050910814,1.3289,143.23,143.1,20.3101]
[1727050911017,18.85,143.22,143.11,1.28362607]
[1727050911212,18.85,143.22,143.08,18.85]
[1727050911213,18.85,143.19,143.08,18.85]
[1727050911419,18.85,143.22,143.08,18.85]
[1727050911420,22.34510817,143.22,143.08,18.85]
[1727050911626,3.49510817,143.22,143.1,18.85]
[1727050911930,18.85,143.22,143.1,18.85]
[1727050912426,18.85,143.22,143.08,18.85]
[1727050913121,3.4928,143.13,143.08,18.85]
[1727050913517,3.4931,143.12,143.06,18.85]
[1727050913732,18.85,143.2,143.08,18.85]
[1727050913917,18.85,143.22,143.08,18.85]
[1727050914424,18.85,143.22,143.08,22.344]
[1727050914828,18.85,143.22,143.08,18.85]
[1727050915524,3.4923,143.16,143.08,22.3437]
[1727050915727,3.4923,143.16,143.08,18.85]
[1727050915918,3.4925,143.14,143.08,22.3439]
[1727050916428,18.85,143.22,143.06,18.85]
[1727050916621,3.493,143.13,143.06,22.3444]
[1727050917025,3.4937,143.1,143.03,18.85]
[1727050917224,18.85,143.16,143.03,18.85]
[1727050917525,1.4237,143.13,143.03,18.85]
[1727050917730,3.494,143.09,143.03,22.3452]
[1727050917929,3.494,143.09,143.03,3.4952]
[1727050918126,3.53526833,143.12,143.02,1.3629]
[1727050918326,20.2737,143.13,143.01,18.85]
[1727050918626,23.76422695,143.13,143.0,18.85]
[1727050918831,3.4939,143.09,143.02,3.4954]
[1727050919631,3.4941,143.08,143.02,3.4954]
[1727050919925,18.85,143.1,142.98,18.85]
[1727050920132,3.4947,143.06,142.98,18.85]
[1727050920425,18.85,143.1,142.97,4.1796]
[1727050920632,3.4949,143.05,142.97,4.1796]
[1727050920928,1.4276,143.09,143.0,18.85]
[1727050921134,4.91422695,143.13,143.02,18.85]
[1727050921323,3.4938,143.09,143.04,3.4949]
[1727050921633,4.91422695,143.13,143.02,18.85]
[1727050921827,3.4942,143.08,143.02,18.85]
[1727050922129,1.4237,143.13,143.02,18.85]
[1727050922832,3.494,143.09,143.03,3.495]
[1727050923018,1.4237,143.13,143.0,18.85]
[1727050923019,18.85,143.12,143.0,18.85]
[1727050923428,3.4949,143.05,142.98,21.6132]
[1727050924025,3.4949,143.05,143.0,3.4959]
[1727050924230,3.495,143.04,143.0,3.4959]
[1727050925321,3.495,143.04,142.98,21.6132]
[1727050925523,1.4237,143.13,143.02,18.85]
[1727050925736,1.4237,143.13,143.05,18.85]
[1727050925934,3.4925,143.15,143.1,3.4933]
[1727050926131,1.428,143.17,143.1,3.4933]
[1727050926323,1.428,143.17,143.07,20.2467]
[1727050926631,1.428,143.17,143.07,1.3967]
[1727050926836,18.85,143.15,143.06,1.3756]
[1727050927026,22.39505551,143.15,143.06,1.3756]
[1727050927222,3.4941,143.08,143.02,18.85]
[1727050927428,18.85,143.13,143.0,18.85]
[1727050927633,2.8372,143.12,143.03,3.495]
[1727050927935,3.4942,143.08,143.03,3.495]
[1727050928138,3.4942,143.08,143.04,3.4949]
[1727050929237,2.8372,143.12,143.06,3.4944]
[1727050929428,2.8372,143.12,143.05,18.85]
[1727050929429,1.4275,143.12,143.05,18.85]
[1727050929630,1.4097,143.16,143.05,18.85]
[1727050929821,3.493,143.12,143.08,3.4938]
[1727050930026,3.493,143.12,143.06,1.3368]
[1727050930027,18.85,143.15,143.02,18.85]
[1727050930541,22.27436043,143.15,143.02,18.85]
[1727050930728,18.85,143.15,143.02,18.85]
[1727050931035,1.4097,143.16,143.02,18.85]
[1727050931329,1.4097,143.16,143.05,3.4946]
[1727050931534,18.85,143.15,143.02,18.85]
[1727050931736,22.31455656,143.15,143.02,18.85]
[1727050931932,18.85,143.15,143.02,18.85]
[1727050932232,1.4097,143.16,143.02,18.85]
[1727050932431,1.4097,143.16,143.05,18.85]
[1727050933029,2.7635,143.17,143.09,18.85]
[1727050933441,2.7635,143.17,143.07,18.85]
[1727050934832,2.7635,143.17,143.06,2.7733]
[1727050935029,3.4926,143.14,143.07,18.85]
[1727050935532,3.4928,143.13,143.09,3.4936]
[1727050936240,3.4924,143.15,143.07,18.85]
[1727050936729,2.7635,143.17,143.07,18.85]
[1727050937237,2.7635,143.17,143.1,3.4933]
[1727050937830,3.4923,143.15,143.1,3.4933]
[1727050938434,2.7635,143.17,143.1,3.4933]
[1727050938435,1.3492,143.21,143.1,18.85]
[1727050938626,2.7374,143.22,143.12,18.85]
[1727050939024,2.7374,143.22,143.16,3.4919]
[1727050939430,2.7374,143.22,143.13,2.7612]
[1727050939737,2.7374,143.22,143.11,1.3757]
[1727050939738,21.5874,143.22,143.11,1.3757]
[1727050940435,21.5874,143.22,143.12,1.3313]
[1727050940840,21.5874,143.22,143.13,3.4927]
[1727050941043,21.5874,143.22,143.12,1.3313]
[1727050941740,2.7374,143.22,143.12,1.3313]
[1727050941946,3.491,143.21,143.16,3.4919]
[1727050942128,2.7374,143.22,143.16,3.4919]
[1727050942332,2.7374,143.22,143.12,1.3313]
[1727050942532,3.4912,143.2,143.15,3.4921]
[1727050942930,3.4912,143.2,143.12,1.3313]
[1727050943135,3.4912,143.2,143.16,3.492]
[1727050943334,3.4909,143.21,143.16,3.492]
[1727050943752,3.4909,143.21,143.17,3.4917]
[1727050944050,1.4604,143.25,143.18,1.405]
[1727050944241,1.3545,143.28,143.21,3.4907]
[1727050944840,3.49,143.25,143.2,3.491]
[1727050945035,3.49,143.25,143.18,1.405]
[1727050945240,3.4897,143.26,143.18,1.405]
[1727050945443,3.4897,143.26,143.19,18.85]
[1727050945645,1.3545,143.28,143.19,18.85]
[1727050946046,1.4427,143.29,143.19,21.5696]
[1727050946441,3.4894,143.27,143.23,3.4902]
[1727050946639,1.4427,143.29,143.19,21.5696]
[1727050946837,4.94455088,143.29,143.19,21.5696]
[1727050947139,3.4899,143.25,143.21,3.4906]
[1727050947746,4.94455088,143.29,143.2,3.491]
[1727050947747,3.4901,143.24,143.2,3.491]
[1727050947946,4.94455088,143.29,143.19,2.7196]
[1727050948140,4.94455088,143.29,143.18,1.405]
[1727050948141,3.4908,143.21,143.18,1.405]
[1727050948333,18.85,143.28,143.18,1.405]
[1727050948942,18.85,143.25,143.13,18.85]
[1727050949242,18.85,143.25,143.14,1.4257]
[1727050949441,18.85,143.25,143.16,3.4918]
[1727050949945,3.4911,143.2,143.16,3.4918]
[1727050950951,3.4909,143.21,143.14,1.4257]
[1727050951138,3.4909,143.21,143.15,18.85]
[1727050951950,3.4909,143.21,143.17,3.4916]
[1727050953241,1.3903,143.27,143.16,3.4919]
[1727050953544,18.85,143.25,143.14,1.4257]
[1727050954354,1.3903,143.27,143.18,3.4915]
[1727050954355,20.2403,143.27,143.18,3.4915]
[1727050954549,1.3903,143.27,143.2,18.85]
[1727050954958,1.4427,143.29,143.2,18.85]
[1727050955353,4.94755453,143.29,143.2,18.85]
[1727050955554,4.94755453,143.29,143.22,3.4905]
[1727050955861,4.94755453,143.29,143.2,18.85]
[1727050956257,4.94755453,143.29,143.18,18.85]
[1727050956961,4.94755453,143.29,143.2,18.85]
[1727050957157,1.4427,143.29,143.2,18.85]
[1727050957357,1.4427,143.29,143.21,1.3998]
[1727050957662,3.4892,143.28,143.23,3.4902]
[1727050957957,2.7246,143.31,143.23,18.85]
[1727050957958,1.3497,143.31,143.23,18.85]
[1727050958154,83.82,143.4,143.26,3.4894]
[1727050958155,2.7967,143.36,143.26,3.4894]
[1727050958363,4.1562,143.36,143.26,3.4894]
[1727050958756,3.4885,143.31,143.26,3.4894]
[1727050959562,3.4885,143.31,143.23,18.85]
[1727050959563,4.1562,143.36,143.27,3.4893]
[1727050959771,3.4882,143.32,143.25,18.85]
[1727050960172,3.4879,143.33,143.25,18.85]
[1727050960467,4.1562,143.36,143.25,18.85]
[1727050960971,18.85,143.35,143.23,18.85]
[1727050961174,18.85,143.35,143.24,3.49]
[1727050962166,18.85,143.35,143.23,18.85]
[1727050962167,18.85,143.35,143.25,3.4898]
[1727050962367,18.85,143.35,143.23,18.85]
[1727050962768,4.1562,143.36,143.25,18.85]
[1727050964465,3.489,143.29,143.24,3.4899]
[1727050964868,18.85,143.35,143.24,3.4899]
[1727050965178,18.85,143.32,143.22,2.8333]
[1727050965379,18.85,143.32,143.21,1.3998]
[1727050965570,3.4897,143.26,143.21,1.3998]
[1727050965875,3.4897,143.26,143.22,3.4904]
[1727050967277,3.4898,143.25,143.22,3.4904]
[1727050967684,18.85,143.32,143.22,3.4904]
[1727050967875,4.1562,143.36,143.22,18.85]
[1727050968074,23.0062,143.36,143.22,18.85]
[1727050968372,23.0062,143.36,143.24,3.49]
[1727050968975,23.0062,143.36,143.23,3.4903]
[1727050969374,18.85,143.33,143.21,1.3998]
[1727050969570,3.4894,143.27,143.21,1.3998]
[1727050970187,3.4894,143.27,143.23,3.4903]
[1727050970478,23.0062,143.36,143.22,18.85]
[1727050970981,23.0062,143.36,143.25,3.4897]
[1727050971172,18.85,143.33,143.22,18.85]
[1727050971569,18.85,143.33,143.24,3.49]
[1727050971773,18.85,143.33,143.22,18.85]
[1727050972678,18.85,143.33,143.22,22.3404]
[1727050973174,18.85,143.33,143.22,18.85]
[1727050973769,3.4888,143.3,143.25,3.4896]
[1727050973970,23.0062,143.36,143.22,18.85]
[1727050974371,3.4893,143.28,143.24,3.4899]
[1727050974976,3.4893,143.28,143.22,18.85]
[1727050975281,23.0062,143.36,143.24,18.85]
[1727050975480,4.1562,143.36,143.27,3.4893]
[1727050975987,4.1562,143.36,143.26,3.4894]
[1727050977786,3.4886,143.3,143.26,3.4894]
[1727050978286,3.4883,143.32,143.28,3.4891]
[1727050979780,4.1562,143.36,143.24,18.85]
[1727050979982,4.1562,143.36,143.22,18.85]
[1727050980481,4.1562,143.36,143.26,18.85]
[1727050980985,3.4883,143.32,143.28,3.4889]
[1727050981572,3.4874,143.35,143.28,18.85]
[1727050981885,3.47996299,143.4,143.31,18.85]
[1727050982074,3.4865,143.39,143.33,18.85]
[1727050982286,16.22834935,143.69,143.38,58.73]
[1727050982577,1.4092,143.67,143.39,2.7708]
[1727050982776,1.4092,143.67,143.51,18.85]
[1727050982982,18.85,143.61,143.47,18.85]
[1727050983180,1.3395,143.6,143.47,18.85]
[1727050983378,20.1895,143.6,143.47,18.85]
[1727050983685,3.4826,143.55,143.48,3.4842]
[1727050983884,2.7618,143.59,143.48,3.4842]
[1727050984182,2.7618,143.59,143.47,18.85]
[1727050984489,18.85,143.58,143.45,18.85]
[1727050985385,18.85,143.55,143.42,18.85]
[1727050985784,3.4846,143.47,143.42,18.85]
[1727050986475,18.85,143.55,143.42,22.3356]
[1727050986476,3.4841,143.49,143.42,22.3356]
[1727050986676,3.4841,143.49,143.45,18.85]
[1727050986882,3.4836,143.51,143.45,18.85]
[1727050987489,3.4839,143.5,143.45,18.85]
[1727050987885,18.85,143.58,143.45,18.85]
[1727050991186,18.85,143.58,143.46,3.4847]
[1727050991378,18.85,143.58,143.45,18.85]
[1727050991582,3.484,143.49,143.45,18.85]
[1727050992292,18.85,143.56,143.42,18.85]
[1727050992697,18.85,143.56,143.44,18.85]
[1727050993288,3.4839,143.5,143.44,18.85]
[1727050993490,18.85,143.56,143.44,18.85]
[1727050993691,18.85,143.56,143.42,18.85]
[1727050994687,18.85,143.56,143.44,18.85]
[1727050994896,3.4842,143.49,143.44,18.85]
[1727050995498,3.4838,143.5,143.44,22.335]
[1727050995693,18.85,143.56,143.44,18.85]
[1727050996193,18.85,143.57,143.44,18.85]
[1727050996591,2.7618,143.59,143.47,18.85]
[1727050997402,3.4832,143.53,143.48,3.4842]
[1727050997700,2.7618,143.59,143.48,1.4161]
[1727050997899,34.7298,143.95,143.48,1.4161]
[1727050997900,3.4804,143.64,143.59,3.4816]
[1727050998096,10.4271,143.84,143.6,18.85]
[1727050998097,3.5574237,143.67,143.6,18.85]
[1727050998297,18.85,143.72,143.58,18.85]
[1727050998597,18.85,143.69,143.58,18.85]
[1727050999000,3.4809,143.62,143.58,18.85]
[1727050999193,3.51912133,143.64,143.57,1.4161]
[1727050999394,18.85,143.69,143.57,1.4161]
[1727050999597,3.4809,143.62,143.57,1.4161]
[1727050999985,22.34292077,143.72,143.58,18.85]
[1727051001888,22.34292077,143.72,143.58,22.3316]
[1727051002092,22.34292077,143.72,143.58,18.85]
[1727051002390,22.34292077,143.72,143.59,3.4815]
[1727051002596,22.34292077,143.72,143.58,18.85]
[1727051003093,4.1348,143.71,143.58,18.85]
[1727051003298,18.85,143.69,143.58,18.85]
[1727051003502,3.4812,143.61,143.58,18.85]
[1727051003810,4.1348,143.71,143.58,18.85]
[1727051004603,3.4808,143.63,143.6,18.85]
[1727051004805,4.1348,143.71,143.6,18.85]
[1727051005197,4.1348,143.71,143.63,18.85]
[1727051006705,3.4799,143.66,143.63,18.85]
[1727051007106,3.49292077,143.72,143.58,21.613]
[1727051007107,3.4792,143.69,143.58,21.613]
[1727051007299,3.49292077,143.72,143.65,18.85]
[1727051007493,83.68,143.74,143.65,18.85]
[1727051007695,4.0104,143.76,143.65,18.85]
[1727051007900,4.0104,143.76,143.65,22.3301]
[1727051008207,83.62,143.8,143.68,18.85]
[1727051008408,1.3352,143.79,143.69,2.8728]
[1727051008904,1.3352,143.79,143.69,1.4209]
[1727051009405,1.3387,143.81,143.69,1.4209]
[1727051009603,2.6776,143.81,143.69,1.4209]
[1727051009905,2.6776,143.81,143.7,18.85]
[1727051011107,3.4785,143.72,143.69,1.4209]
[1727051011306,18.85,143.8,143.69,1.4209]
[1727051011609,2.6776,143.81,143.69,1.4209]
[1727051012199,3.4781,143.74,143.69,1.4209]
[1727051012397,2.6776,143.81,143.7,18.85]
[1727051012811,2.6776,143.81,143.7,22.3287]
[1727051013307,3.4773,143.77,143.72,3.4784]
[1727051013510,1.4478,143.83,143.73,18.85]
[1727051013710,18.85,143.86,143.73,18.85]
[1727051013914,3.4774,143.77,143.73,18.85]
[1727051014411,3.44531441,143.81,143.73,18.85]
[1727051014601,1.4478,143.85,143.76,18.85]
[1727051014913,1.4478,143.85,143.73,18.85]
[1727051014914,2.7538,143.88,143.79,18.85]
[1727051015110,2.7538,143.88,143.76,18.85]
[1727051015315,2.7538,143.88,143.74,2.7425]
[1727051015703,2.7538,143.88,143.78,18.85]
[1727051016305,2.7538,143.88,143.76,18.85]
[1727051016610,2.7538,143.88,143.74,2.7425]
[1727051016611,3.4767,143.8,143.74,6.2204]
[1727051016910,21.6038,143.88,143.74,2.7425]
[1727051017111,3.4877804,143.89,143.74,2.7425]
[1727051017313,1.4506,143.89,143.77,18.85]
[1727051018004,18.85,143.88,143.74,2.7425]
[1727051018407,3.4763,143.81,143.75,3.4777]
[1727051018613,3.4763,143.81,143.76,20.2338]
[1727051019511,1.4506,143.89,143.76,20.2338]
[1727051019716,4.96868935,143.89,143.76,20.2338]
[1727051020015,3.4759,143.83,143.76,20.2338]
[1727051020217,3.40153872,143.85,143.79,18.85]
[1727051020514,1.4506,143.89,143.79,18.85]
[1727051020915,1.4506,143.89,143.76,20.2338]
[1727051020916,4.88727787,143.89,143.76,20.2338]
[1727051021210,18.85,143.83,143.65,184.0823886]
[1727051021413,4.1777,143.82,143.7,18.85]
[1727051021601,4.1777,143.82,143.73,18.85]
[1727051021802,3.4774,143.77,143.73,18.85]
[1727051022013,4.1777,143.82,143.73,18.85]
[1727051022708,4.1777,143.82,143.7,18.85]
[1727051022910,3.4779,143.74,143.7,18.85]
[1727051023716,4.1777,143.82,143.7,18.85]
[1727051024212,3.4779,143.75,143.7,18.85]
[1727051024518,4.1777,143.82,143.73,18.85]
[1727051024814,2.8469,143.82,143.74,1.3269]
[1727051025709,1.4633,143.86,143.75,18.85]
[1727051025909,1.3638,143.85,143.75,18.85]
[1727051026109,3.4769,143.79,143.75,18.85]
[1727051026912,23.66441891,143.85,143.74,1.3269]
[1727051027318,3.4775,143.76,143.74,1.3269]
[1727051027517,3.43391564,143.77,143.74,1.3269]
[1727051027813,23.66441891,143.85,143.74,1.3269]
[1727051029013,3.478,143.74,143.7,18.85]
[1727051029516,3.478,143.74,143.68,1.3693]
[1727051029517,3.478,143.74,143.68,4.8486]
[1727051029716,3.43228479,143.77,143.68,20.2193]
[1727051029717,3.4782,143.73,143.68,20.2193]
[1727051029908,18.85,143.8,143.68,20.2193]
[1727051030109,2.7578,143.79,143.68,1.3693]
[1727051030311,20.2357,143.78,143.68,1.3693]
[1727051030815,1.3857,143.78,143.68,20.2193]
[1727051031209,3.4779,143.75,143.68,23.6984]
[1727051031408,3.50466063,143.75,143.68,20.2193]
[1727051031604,1.3857,143.78,143.68,20.2193]
[1727051031806,1.4481,143.84,143.74,3.4779]
[1727051032009,2.8338,143.84,143.74,3.4779]
[1727051032320,2.8338,143.84,143.73,18.85]
[1727051032521,6.24976529,143.84,143.73,18.85]
[1727051032715,2.8338,143.84,143.73,18.85]
[1727051032913,3.477,143.78,143.73,18.85]
[1727051033217,3.46087097,143.81,143.73,18.85]
[1727051033416,2.8338,143.84,143.7,18.85]
[1727051033720,18.85,143.83,143.7,18.85]
[1727051034019,18.85,143.83,143.68,1.3693]
[1727051034020,18.85,143.81,143.68,20.2193]
[1727051034520,3.4779,143.75,143.69,3.4789]
[1727051034816,18.85,143.78,143.68,1.3693]
[1727051035120,2.8571,143.77,143.68,1.3693]
[1727051036017,3.4785,143.72,143.68,1.3693]
[1727051036316,3.45133959,143.73,143.66,18.85]
[1727051036517,4.3126,143.77,143.64,18.85]
[1727051037013,18.85,143.76,143.64,18.85]
[1727051037219,22.36503414,143.76,143.64,22.3304]
[1727051037519,22.36503414,143.76,143.64,18.85]
[1727051037922,18.85,143.74,143.61,18.85]
[1727051038308,22.34700365,143.74,143.61,18.85]
[1727051038512,22.34700365,143.74,143.62,3.4808]
[1727051038713,22.34700365,143.74,143.61,18.85]
[1727051039019,22.34700365,143.74,143.61,22.331]
[1727051039607,22.34700365,143.74,143.59,22.9545]
[1727051039608,18.85,143.71,143.59,22.9545]
[1727051039813,1.3977,143.7,143.59,22.9545]
[1727051040120,3.4803,143.65,143.59,26.4359]
[1727051040322,4.1536,143.7,143.59,22.9545]
[1727051040621,3.4805,143.64,143.59,4.1045]
[1727051041020,3.52590451,143.66,143.59,4.1045]
[1727051041221,3.4805,143.64,143.59,4.1045]
[1727051041419,3.52957106,143.64,143.59,1.3902]
[1727051041720,3.4808,143.63,143.59,1.3902]
[1727051041913,3.49926684,143.65,143.59,1.3902]
[1727051042118,4.1536,143.7,143.59,1.3902]
[1727051042317,3.4806,143.64,143.59,1.3902]
[1727051042519,3.5344476,143.64,143.59,1.3902]
[1727051042721,4.1536,143.7,143.59,1.3902]
[1727051042925,18.85,143.69,143.59,1.3902]
[1727051043227,3.4808,143.63,143.59,1.3902]
[1727051043423,3.41392736,143.64,143.59,1.3902]
[1727051043619,18.85,143.69,143.59,1.3902]
[1727051043819,229.0,143.82,143.59,20.2402]
[1727051044018,1.4015,143.75,143.63,18.85]
[1727051044214,6.24096282,143.75,143.63,18.85]
[1727051044428,3.4784,143.73,143.63,18.85]
[1727051044618,2.8448,143.75,143.63,18.85]
[1727051044619,3.45328802,143.72,143.63,18.85]
[1727051044825,2.8448,143.75,143.66,3.4797]
[1727051044826,3.4783,143.73,143.66,3.4797]
[1727051045022,2.8448,143.75,143.67,1.4205]
[1727051045225,18.85,143.8,143.67,1.4205]
[1727051045226,3.50093826,143.74,143.67,1.4205]
[1727051045523,3.4781,143.74,143.68,3.4792]
[1727051045831,2.7489,143.79,143.67,2.8444]
[1727051046127,2.7489,143.79,143.67,4.2323]